{"text_format":"1","workbook":"xlsx","n_sheets":3,"sheets":["Feuil1","Feuil2","Feuil3"],"not_rendered":{"charts":0,"images":2,"macros":1,"external_links":0,"defined_names":1,"comments":0,"pivot_tables":0},"unopened":[],"bounds":{"document_bytes":16777216,"sheet_cells":100000,"rows_first":2000,"rows_last":500,"rows_between":2000,"halvings":0,"cell_chars":16384,"cell_head_chars":4096},"cells_cut":0,"cells_raw":0,"read":"whole","date_system":"1900"}

{"sheet":"Feuil1","index":0,"n_rows":39,"n_cols":15,"rows_kept":39,"cut":false,"hidden":false,"merged":[[1,0,1,3],[9,0,13,0],[14,0,18,0],[19,0,34,0],[36,1,36,3],[2,0,2,3],[4,1,4,3],[5,1,5,3],[6,1,6,3]]}
[]
["Test d'éligibilité au Dispositif de Soutien Relations Internationales"]
["RAPPEL: les projets de recherche et la mobilité étudiante sont éligibles uniquement s'ils concernent  Eucor - Le Campus européen. \nAfin de garantir la fiabilité du résultat, veillez à cocher l'une des deux case pour chaque ligne.  Vérifier bien que les cases cochées n'entrent pas en contradication.  (Si vous ne pouvez pas cliquer, pensez à activer la modification et les contenus dans l'encadré  jaune en haut de l'écran).\nUne indication apparaîtra au bas du TEST. \nAttention l'indication d'éligibilité au dispositif ne signifie pas l'attribution automatique d'un soutien financier. \nSi vous êtes éligible, cliquez sur le bouton d'envoi,  votre boîte d'envoi mail s'ouvrira avec le test renseigné en pièce jointe et vous pourrez l'envoyer  à dri-soutien@unistra.fr (saisie de l'adresse manuelle)  en précisant, en quelques lignes, l'objet de votre demande.\nUne personne de la Direction des relations internationales ou de Eucor-Le Campus européen prendra contact avec vous afin de formaliser une demande via  un formulaire en ligne."]
[]
["NOM"]
["PRENOM"]
["ENTITE"]
[]
[null,null,"oui","non",null,null,null,null,"oui","non"]
["Statut ","Vous êtes enseignant-chercheur ?",null,null,null,{"$f":"IF(I10=TRUE,1,0)","v":0},{"$f":"IF(J10=TRUE,1,0)","v":0},null,false,false]
[null,"Vous êtes chercheur ?",null,null,null,{"$f":"IF(I11=TRUE,1,0)","v":0},{"$f":"IF(J11=TRUE,1,0)","v":0},null,false,false]
[null,"Vous êtes enseignant ?",null,null,null,0,0,null,false,false]
[null,"Vous êtes doctorant ? ",null,null,null,0,0,null,false,false]
[null,"Vous êtes personnel administratif de l'Université de Strasbourg  (BIATSS) ?",null,null,null,0,0,null,false,false,"DRI",1,{"$f":"IF(COUNTIF(I11,\"vrai\")+COUNTIF(I13,\"vrai\")+COUNTIF(I16,\"vrai\")+COUNTIF(I17,\"vrai\")+COUNTIF(I22,\"vrai\")+COUNTIF(I27,\"vrai\")+COUNTIF(I28,\"vrai\")+COUNTIF(I31,\"vrai\")+COUNTIF(I32,\"vrai\")>=1,\"non\",\"oui\")","v":"oui"}]
["Zone géographique concernée","Ce projet concerne-t-il un pays du programme Erasmus + ?",null,null,null,0,0,null,false,false,"Collaborateurs occasionnels",2,{"$f":"IF(COUNTIF(I13,\"vrai\")+COUNTIF(I11,\"vrai\")+COUNTIF(I17,\"vrai\")+COUNTIF(I22,\"vrai\")+COUNTIF(I27,\"vrai\")+COUNTIF(I32,\"vrai\")+COUNTIF(I29,\"vrai\")+COUNTIF(J31,\"vrai\")+COUNTIF(I32,\"vrai\")+COUNTIF(I33,\"vrai\")>=1,\"non\",\"oui\")","v":"oui"}]
[null,"Ce projet concerne-t-il  Eucor - Le Campus européen?\n(Université de Freiburg-im-Brisgau, Karlsruher Institut für Technologie, Université de Basel, Université de Haute-Alsace, Université de Strasbourg)",null,null,null,0,0,null,false,false,"Mobilités collectives EUCOR",3,{"$f":"IF(COUNTIF(I11,\"vrai\")+COUNTIF(I13,\"vrai\")+COUNTIF(I18,\"vrai\")+COUNTIF(I19,\"vrai\")+COUNTIF(I20,\"vrai\")+COUNTIF(I21,\"vrai\")+COUNTIF(I25,\"vrai\")+COUNTIF(I26,\"vrai\")+COUNTIF(I27,\"vrai\")+COUNTIF(I28,\"vrai\")+COUNTIF(I30,\"vrai\")+COUNTIF(I31,\"vrai\")+COUNTIF(I33,\"vrai\")+COUNTIF(J16,\"vrai\")+COUNTIF(J32,\"vrai\")>=1,\"non\",\"oui\")","v":"oui"}]
[null,"Ce projet concerne-t-il un accord Erasmus +  existant / souhaité ?",null,null,null,0,0,null,false,false,"Crédits OM Erasmus +",4,{"$f":"IF(COUNTIF(I13,\"vrai\")+COUNTIF(I11,\"vrai\")+COUNTIF(I18,\"vrai\")+COUNTIF(I19,\"vrai\")+COUNTIF(I22,\"vrai\")+COUNTIF(I27,\"vrai\")+COUNTIF(I28,\"vrai\")+COUNTIF(I32,\"vrai\")+COUNTIF(I33,\"vrai\")+COUNTIF(I34,\"vrai\")+COUNTIF(J15,\"vrai\")+COUNTIF(J17,\"vrai\")>=1,\"non\",\"oui\")","v":"oui"}]
[null,"Ce projet concerne-t-il un pays partenaire hors erasmus+ ?",null,null,null,0,0,null,false,false,"Erasmus Enseignements (STA)",5,{"$f":"IF(COUNTIF(I13,\"vrai\")+COUNTIF(I18,\"vrai\")+COUNTIF(I11,\"vrai\")+COUNTIF(I19,\"vrai\")+COUNTIF(I21,\"vrai\")+COUNTIF(I22,\"vrai\")+COUNTIF(I25,\"vrai\")+COUNTIF(I26,\"vrai\")+COUNTIF(I27,\"vrai\")+COUNTIF(I28,\"vrai\")+COUNTIF(I30,\"vrai\")+COUNTIF(I31,\"vrai\")+COUNTIF(I32,\"vrai\")+COUNTIF(I34,\"vrai\")+COUNTIF(J15,\"vrai\")+COUNTIF(J17,\"vrai\")+COUNTIF(J20,\"vrai\")+COUNTIF(J29,\"vrai\")+COUNTIF(J33,\"vrai\")>=1,\"non\",\"oui\")","v":"oui"}]
[null,"Ce projet concerne-t-il l'Azerbaïdjan et/ou l'Ukraine?",null,null,null,0,0,null,false,false,"Erasmus Formation (STT)",6,{"$f":"IF(COUNTIF(I13,\"vrai\")+COUNTIF(I18,\"vrai\")+COUNTIF(I11,\"vrai\")+COUNTIF(I19,\"vrai\")+COUNTIF(I20,\"vrai\")+COUNTIF(I22,\"vrai\")+COUNTIF(I25,\"vrai\")+COUNTIF(I30,\"vrai\")+COUNTIF(I31,\"vrai\")+COUNTIF(I34,\"vrai\")+COUNTIF(I35,\"vrai\")+COUNTIF(I33,\"vrai\")+COUNTIF(J15,\"vrai\")+COUNTIF(J17,\"vrai\")+COUNTIF(J28,\"vrai\")+COUNTIF(J29,\"vrai\")>=1,\"non\",\"oui\")","v":"oui"}]
["Objectif du projet","Ce projet concerne-t-il une mobilté enseignante ?",null,null,null,0,0,null,false,false,"credits OM Erasmus+ MIC 2016 Azerbaidjan/Ukraine",7,{"$f":"IF(COUNTIF(I11,\"vrai\")+COUNTIF(I13,\"vrai\")+COUNTIF(I15,\"vrai\")+COUNTIF(I16,\"vrai\")+COUNTIF(I22,\"vrai\")+COUNTIF(I27,\"vrai\")+COUNTIF(I32,\"vrai\")+COUNTIF(I33,\"vrai\")+COUNTIF(J17,\"vrai\")+COUNTIF(J18,\"vrai\")+COUNTIF(J19,\"vrai\")+COUNTIF(I34,\"vrai\")+COUNTIF(J16,\"vrai\")+COUNTIF(J18,\"vrai\")+COUNTIF(J29,\"vrai\")+COUNTIF(J30,\"vrai\")>=1,\"non\",\"oui\")","v":"oui"}]
[null,"Ce projet concerne-t-il une mobilité administrative ?",null,null,null,0,0,null,false,false,"IDEX Soutien à la coopération internationale",9,{"$f":"IF(COUNTIF(I11,\"vrai\")+COUNTIF(I13,\"vrai\")+COUNTIF(I16,\"vrai\")+COUNTIF(I17,\"vrai\")+COUNTIF(I19,\"vrai\")+COUNTIF(I22,\"vrai\")+COUNTIF(I27,\"vrai\")+COUNTIF(I31,\"vrai\")+COUNTIF(I32,\"vrai\")+COUNTIF(J28,\"vrai\")>=1,\"non\",\"oui\")","v":"oui"}]
[null,"Ce projet concerne-t-il une mobilité  étudiante ?",null,null,null,0,0,null,false,false,"IDEX Mobilité des personnels",10,{"$f":"IF(COUNTIF(I13,\"vrai\")+COUNTIF(I15,\"vrai\")+COUNTIF(I11,\"vrai\")+COUNTIF(I17,\"vrai\")+COUNTIF(I19,\"vrai\")+COUNTIF(I20,\"vrai\")+COUNTIF(I22,\"vrai\")+COUNTIF(I25,\"vrai\")+COUNTIF(I30,\"vrai\")+COUNTIF(I31,\"vrai\")+COUNTIF(I32,\"vrai\")+COUNTIF(I33,\"vrai\")+COUNTIF(EY34,\"vrai\")+COUNTIF(J29,\"vrai\")>=1,\"non\",\"oui\")","v":"oui"}]
[null,"Ce projet concerne-t-il le renforcement d'un partenariat?",null,null,null,0,0,null,false,false,"IDEX AAP Eucor -Le campus européen",11,{"$f":"IF(COUNTIF(I17,\"vrai\")+COUNTIF(I18,\"vrai\")+COUNTIF(I19,\"vrai\")+COUNTIF(I22,\"vrai\")+COUNTIF(I32,\"vrai\")+COUNTIF(J15,\"vrai\")+COUNTIF(J16,\"vrai\")>=1,\"non\",\"oui\")","v":"oui"}]
[null,"Ce projet concerne-t-il l'initiation d'un partenariat ?",null,null,null,0,0,null,false,false]
[null,"Ce projet concerne-t-il une rencontre préparatoire au dépôt d'un projet collaboratif?",null,null,null,0,0,null,false,false]
[null,"Ce projet concerne-t-il  l'évaluation d'une coopération ?",null,null,null,0,0,null,false,false]
[null,"Ce projet concerne-t-il une staff week ?",null,null,null,0,0,null,false,false]
[null,"Ce projet concerne-t-il l'échange de bonnes pratiques entre services ou directions   (job shadowing) ?",null,null,null,0,0,null,false,false]
[null,"Ce projet concerne-t-il un déplacement ?",null,null,null,0,0,null,false,false]
[null,"Ce projet concerne-t-il l'accueil de partenaires?",null,null,null,0,0,null,false,false,"vous êtes éligible au dispositif",null,null,null,{"$f":"IF(M14=\"oui\",L14,\"\")","v":1}]
[null,"Ce projet concerne-t-il l'invitation d'un collaborateur occasionnel étranger?",null,null,null,0,0,null,false,false,"Vous n'êtes pas éligible au dispositif",null,null,null,{"$f":"IF(M15=\"oui\",L15,\"\")","v":2}]
[null,"Ce projet concerne-t-il la mobilité collective étudiante au sein d'une université membre d'Eucor - Le Campus européen ?\n(Université de Freiburg-im-Brisgau, Karlsruher Institut für Technologie, Université de Basel, Université de Haute-Alsace, Université de Strasbourg)\n\n",null,null,null,0,0,null,false,false,null,null,null,null,3]
[null,"Ce projet concerne-t-il  de l'enseignement chez le partenaire?",null,null,null,0,0,null,false,false,null,null,null,null,4]
[null,"Ce projet concerne-t-il l'organisation d'une manifestation ?(séminaire, colloque, journées d'études…)",null,null,null,0,0,null,false,false,null,null,null,null,5]
[null,"Ce projet concerne-t-il une formation en partenariat international (Double-diplôme, Master conjoint Erasmus +) ?",null,null,null,0,0,null,false,false,null,null,null,null,6]
[null,null,null,null,null,null,null,null,null,null,null,null,null,null,7]
["Résultat",{"$f":"IF(COUNTIF(M14:M23,\"oui\"),K30,K31)","v":"vous êtes éligible au dispositif"},null,null,null,null,{"$f":"SUM(F10:G35)","v":0},null,null,null,null,null,null,null,9]
[null,null,null,null,null,null,null,null,null,null,null,null,null,null,10]
[{"$f":"O30&\";\"&O31&\";\"&O32&\";\"&O33&\";\"&O34&\";\"&O35&\";\"&O36&\";\"&O37&\";\"&O38&\";\"&O39","v":"1;2;3;4;5;6;7;9;10;11"},null,null,null,null,null,null,null,null,null,null,null,null,null,11]

{"sheet":"Feuil2","index":1,"n_rows":0,"n_cols":0,"rows_kept":0,"cut":false,"hidden":false,"merged":[]}

{"sheet":"Feuil3","index":2,"n_rows":0,"n_cols":0,"rows_kept":0,"cut":false,"hidden":false,"merged":[]}